[Event "*** Titled Tuesday 3|2 Blitz"]
[Site "Chess.com"]
[Date "2016.10.04"]
[Round "4"]
[White "BCNUM8"]
[Black "3f32"]
[Result "1/2-1/2"]
[WhiteElo "2147"]
[BlackElo "2265"]
[TimeControl "180+2"]
[EndTime "17:51:35 PDT"]
[Termination "Game drawn by repetition"]

1. d4 {[%clk 0:03:01.9]} 1... Nf6 {[%clk 0:02:59.5]} 2. Bg5 {[%clk 0:03:03.4]}
2... g6 {[%clk 0:02:58.2]} 3. Bxf6 {[%clk 0:03:04.1]} 3... exf6 {[%clk 0:02:57]}
4. e3 {[%clk 0:03:06]} 4... d5 {[%clk 0:02:55.3]} 5. c4 {[%clk 0:03:07.9]} 5...
c6 {[%clk 0:02:56.1]} 6. cxd5 {[%clk 0:03:08.1]} 6... cxd5 {[%clk 0:02:58]} 7.
Nc3 {[%clk 0:03:09.2]} 7... Be6 {[%clk 0:02:45]} 8. Nge2 {[%clk 0:03:07.7]} 8...
Nc6 {[%clk 0:02:40.4]} 9. g3 {[%clk 0:03:07.2]} 9... Bf5 {[%clk 0:02:36]} 10.
Bg2 {[%clk 0:03:07.5]} 10... Nb4 {[%clk 0:02:36.6]} 11. O-O {[%clk 0:03:08.4]}
11... Bc2 {[%clk 0:02:25.4]} 12. Qd2 {[%clk 0:03:01.2]} 12... Bd3 {[%clk
0:02:21.2]} 13. Rfc1 {[%clk 0:02:49.3]} 13... Be7 {[%clk 0:02:07.8]} 14. Nf4
{[%clk 0:02:49.6]} 14... Be4 {[%clk 0:02:02.5]} 15. Nxe4 {[%clk 0:02:50.3]}
15... dxe4 {[%clk 0:02:04.4]} 16. Bxe4 {[%clk 0:02:50.7]} 16... Rb8 {[%clk
0:02:00.1]} 17. a3 {[%clk 0:02:42.8]} 17... Na6 {[%clk 0:02:00.3]} 18. Nd5
{[%clk 0:02:40.9]} 18... O-O {[%clk 0:01:58.7]} 19. b4 {[%clk 0:02:34.4]} 19...
Bd6 {[%clk 0:01:52.5]} 20. Bg2 {[%clk 0:02:22.7]} 20... f5 {[%clk 0:01:53.1]}
21. Rc2 {[%clk 0:02:11]} 21... Nc7 {[%clk 0:01:53.3]} 22. Rac1 {[%clk
0:02:11.8]} 22... Nxd5 {[%clk 0:01:53.5]} 23. Bxd5 {[%clk 0:02:13.7]} 23... Qd7
{[%clk 0:01:42.1]} 24. Bb3 {[%clk 0:02:06.4]} 24... Rbc8 {[%clk 0:01:40.6]} 25.
Qd3 {[%clk 0:02:02.3]} 25... Rxc2 {[%clk 0:01:31.6]} 26. Qxc2 {[%clk 0:02:02.4]}
26... Rd8 {[%clk 0:01:26.4]} 27. Qc4 {[%clk 0:01:56.4]} 27... Kg7 {[%clk
0:01:15.6]} 28. Qc2 {[%clk 0:01:34.8]} 28... Bf8 {[%clk 0:01:09.6]} 29. Kg2
{[%clk 0:01:35.3]} 29... a5 {[%clk 0:01:06.6]} 30. Qc7 {[%clk 0:01:16.3]} 30...
Bd6 {[%clk 0:00:39.1]} 31. Qb6 {[%clk 0:01:12.5]} 31... axb4 {[%clk 0:00:38.8]}
32. axb4 {[%clk 0:01:12.4]} 32... Qe7 {[%clk 0:00:37.9]} 33. Bd5 {[%clk
0:01:05.1]} 33... Bxb4 {[%clk 0:00:37.1]} 34. Qxb7 {[%clk 0:01:04.5]} 34... Rd7
{[%clk 0:00:36.4]} 35. Qb5 {[%clk 0:00:58.7]} 35... Bd6 {[%clk 0:00:32.5]} 36.
Rc8 {[%clk 0:00:41.3]} 36... h5 {[%clk 0:00:30.4]} 37. h4 {[%clk 0:00:24.2]}
37... Ra7 {[%clk 0:00:27.8]} 38. Qe8 {[%clk 0:00:22.1]} 38... Qxe8 {[%clk
0:00:26.1]} 39. Rxe8 {[%clk 0:00:24]} 39... Ra5 {[%clk 0:00:25.1]} 40. Bc4
{[%clk 0:00:19.6]} 40... Ra4 {[%clk 0:00:25.9]} 41. Bd5 {[%clk 0:00:18.4]} 41...
Ra5 {[%clk 0:00:26.4]} 42. Bc4 {[%clk 0:00:19.8]} 42... Ra4 {[%clk 0:00:27.6]}
43. Bd5 {[%clk 0:00:21.3]} 43... Ra5 {[%clk 0:00:28.9]} 44. Bc4 {[%clk
0:00:22.6]} 1/2-1/2

[Event "*** Titled Tuesday 3|2 Blitz"]
[Site "Chess.com"]
[Date "2016.10.04"]
[Round "4"]
[White "ka1ser64"]
[Black "MFBerna"]
[Result "0-1"]
[WhiteElo "2239"]
[BlackElo "2161"]
[TimeControl "180+2"]
[EndTime "17:51:40 PDT"]
[Termination "MFBerna won by checkmate"]

1. d4 {[%clk 0:03:02]} 1... d5 {[%clk 0:03:00.7]} 2. c4 {[%clk 0:03:03.1]} 2...
e6 {[%clk 0:03:01.5]} 3. Nf3 {[%clk 0:03:04.3]} 3... Be7 {[%clk 0:03:02.9]} 4.
Nc3 {[%clk 0:03:04.4]} 4... Nf6 {[%clk 0:03:04.2]} 5. Bf4 {[%clk 0:03:05.4]}
5... O-O {[%clk 0:03:05.2]} 6. e3 {[%clk 0:03:06.8]} 6... Nbd7 {[%clk
0:03:06.3]} 7. c5 {[%clk 0:03:06.9]} 7... Nh5 {[%clk 0:03:06.9]} 8. Be5 {[%clk
0:03:08.3]} 8... f6 {[%clk 0:03:06.7]} 9. Bg3 {[%clk 0:03:09.3]} 9... b6 {[%clk
0:03:07.8]} 10. b4 {[%clk 0:03:09.1]} 10... a5 {[%clk 0:03:09.2]} 11. a3 {[%clk
0:03:10.2]} 11... c6 {[%clk 0:03:10.1]} 12. b5 {[%clk 0:03:11.4]} 12... cxb5
{[%clk 0:03:04.9]} 13. c6 {[%clk 0:03:12.3]} 13... Nxg3 {[%clk 0:02:56.1]} 14.
hxg3 {[%clk 0:03:11.8]} 14... b4 {[%clk 0:02:21.9]} 15. cxd7 {[%clk 0:02:59.6]}
15... bxc3 {[%clk 0:02:22]} 16. dxc8=Q {[%clk 0:03:00.2]} 16... Rxc8 {[%clk
0:02:23.9]} 17. Qc2 {[%clk 0:03:00.3]} 17... g6 {[%clk 0:02:22.2]} 18. Bd3
{[%clk 0:03:00.9]} 18... Kg7 {[%clk 0:02:20.1]} 19. O-O {[%clk 0:02:59.1]} 19...
Qd6 {[%clk 0:01:55.6]} 20. Rfb1 {[%clk 0:02:59.2]} 20... Rc6 {[%clk 0:01:48.5]}
21. Rb3 {[%clk 0:02:54.3]} 21... Rfc8 {[%clk 0:01:48.5]} 22. Ba6 {[%clk
0:02:45.4]} 22... Rb8 {[%clk 0:01:18.7]} 23. Bb5 {[%clk 0:02:36.9]} 23... Rc7
{[%clk 0:01:16.3]} 24. Rxc3 {[%clk 0:02:23.5]} 24... Rbc8 {[%clk 0:01:17.2]} 25.
Rxc7 {[%clk 0:02:22.7]} 25... Rxc7 {[%clk 0:01:19.1]} 26. Qb2 {[%clk 0:02:21]}
26... g5 {[%clk 0:00:57.1]} 27. Bd3 {[%clk 0:02:20.3]} 27... g4 {[%clk
0:00:37.5]} 28. Nd2 {[%clk 0:02:17.4]} 28... Qc6 {[%clk 0:00:30]} 29. Rb1 {[%clk
0:02:14.8]} 29... Rb7 {[%clk 0:00:16.5]} 30. Rc1 {[%clk 0:02:13.8]} 30... Qd6
{[%clk 0:00:16.7]} 31. a4 {[%clk 0:02:10.7]} 31... Rc7 {[%clk 0:00:13.3]} 32.
Rxc7 {[%clk 0:02:06]} 32... Qxc7 {[%clk 0:00:15.2]} 33. Qc2 {[%clk 0:02:06.6]}
33... Qd7 {[%clk 0:00:08.5]} 34. Bxh7 {[%clk 0:02:05.1]} 34... f5 {[%clk
0:00:06.1]} 35. Bxf5 {[%clk 0:01:59.3]} 35... exf5 {[%clk 0:00:08]} 36. Nb1
{[%clk 0:01:50.2]} 36... Bb4 {[%clk 0:00:06.7]} 37. Nc3 {[%clk 0:01:45.5]} 37...
Qc6 {[%clk 0:00:04.9]} 38. Qxf5 {[%clk 0:01:47.1]} 38... Bxc3 {[%clk 0:00:05.6]}
39. Qxg4+ {[%clk 0:01:48.7]} 39... Kf7 {[%clk 0:00:04.8]} 40. Qf5+ {[%clk
0:01:50.3]} 40... Ke7 {[%clk 0:00:06.1]} 41. Qh7+ {[%clk 0:01:51.5]} 41... Kd6
{[%clk 0:00:06.9]} 42. Qf7 {[%clk 0:01:50]} 42... Qxa4 {[%clk 0:00:05.3]} 43. g4
{[%clk 0:01:49.2]} 43... Qd1+ {[%clk 0:00:05.1]} 44. Kh2 {[%clk 0:01:49.7]}
44... Qxg4 {[%clk 0:00:06.1]} 45. Qf8+ {[%clk 0:01:51.2]} 45... Kc6 {[%clk
0:00:05.3]} 46. Qe8+ {[%clk 0:01:51.4]} 46... Qd7 {[%clk 0:00:04]} 47. Qg6+
{[%clk 0:01:51.8]} 47... Kb7 {[%clk 0:00:04.9]} 48. f4 {[%clk 0:01:51.6]} 48...
a4 {[%clk 0:00:05.8]} 49. Qd3 {[%clk 0:01:53.2]} 49... Qc6 {[%clk 0:00:04.8]}
50. f5 {[%clk 0:01:53.7]} 50... a3 {[%clk 0:00:04.6]} 51. f6 {[%clk 0:01:55.1]}
51... a2 {[%clk 0:00:04.8]} 52. f7 {[%clk 0:01:56.4]} 52... Qc7+ {[%clk
0:00:06]} 53. g3 {[%clk 0:01:56.6]} 53... Bb4 {[%clk 0:00:06.3]} 54. Qd1 {[%clk
0:01:56.2]} 54... Qc3 {[%clk 0:00:06.1]} 55. f8=Q {[%clk 0:01:56.5]} 55... Bxf8
{[%clk 0:00:06.8]} 56. Qa4 {[%clk 0:01:57.3]} 56... a1=Q {[%clk 0:00:06.6]} 57.
Qd7+ {[%clk 0:01:58.9]} 57... Qc7 {[%clk 0:00:06.7]} 58. Qxd5+ {[%clk
0:01:59.8]} 58... Ka7 {[%clk 0:00:08.1]} 59. Qb5 {[%clk 0:02:00.2]} 59... Qa2+
{[%clk 0:00:08.1]} 60. Kh3 {[%clk 0:02:01.6]} 60... Qh7+ {[%clk 0:00:08.5]} 61.
Kg4 {[%clk 0:02:02.6]} 61... Qg6+ {[%clk 0:00:09.3]} 62. Kf3 {[%clk 0:02:03.7]}
62... Qf6+ {[%clk 0:00:06.2]} 63. Kg4 {[%clk 0:02:04.9]} 63... Qae6+ {[%clk
0:00:07]} 64. Kh5 {[%clk 0:02:05]} 64... Qh6# {[%clk 0:00:06.2]} 0-1

[Event "*** Titled Tuesday 3|2 Blitz"]
[Site "Chess.com"]
[Date "2016.10.04"]
[Round "4"]
[White "ShimanovAlex"]
[Black "gmjoey1"]
[Result "1-0"]
[WhiteElo "2598"]
[BlackElo "2488"]
[TimeControl "180+2"]
[EndTime "17:51:48 PDT"]
[Termination "ShimanovAlex won on time"]

1. d4 {[%clk 0:03:01.9]} 1... Nf6 {[%clk 0:02:59.5]} 2. Bf4 {[%clk 0:02:59]}
2... e6 {[%clk 0:02:56]} 3. Nf3 {[%clk 0:02:57.3]} 3... d5 {[%clk 0:02:56.6]} 4.
e3 {[%clk 0:02:53.8]} 4... Nbd7 {[%clk 0:02:55.7]} 5. c3 {[%clk 0:02:53.6]} 5...
c5 {[%clk 0:02:49]} 6. Bd3 {[%clk 0:02:53.7]} 6... Qb6 {[%clk 0:02:48.7]} 7. Qc1
{[%clk 0:02:47]} 7... Bd6 {[%clk 0:02:47.7]} 8. Bg3 {[%clk 0:02:47.2]} 8... O-O
{[%clk 0:02:46]} 9. Ne5 {[%clk 0:02:45.7]} 9... Qc7 {[%clk 0:02:42.6]} 10. f4
{[%clk 0:02:45.9]} 10... Nh5 {[%clk 0:02:37]} 11. Nd2 {[%clk 0:02:43.5]} 11...
f6 {[%clk 0:02:26.1]} 12. Qd1 {[%clk 0:02:26.8]} 12... g6 {[%clk 0:02:09.4]} 13.
Nef3 {[%clk 0:02:10.4]} 13... e5 {[%clk 0:01:57.8]} 14. e4 {[%clk 0:01:48.4]}
14... exf4 {[%clk 0:01:49.1]} 15. Bf2 {[%clk 0:01:48.5]} 15... c4 {[%clk
0:01:50.4]} 16. Bc2 {[%clk 0:01:49.4]} 16... Nb6 {[%clk 0:01:51.1]} 17. O-O
{[%clk 0:01:48.8]} 17... Be6 {[%clk 0:01:51.6]} 18. Re1 {[%clk 0:01:48.9]} 18...
Rae8 {[%clk 0:01:52]} 19. e5 {[%clk 0:01:19]} 19... fxe5 {[%clk 0:01:48.8]} 20.
dxe5 {[%clk 0:01:20.9]} 20... Bc5 {[%clk 0:01:46.3]} 21. Bxc5 {[%clk 0:01:21.3]}
21... Qxc5+ {[%clk 0:01:46.3]} 22. Nd4 {[%clk 0:01:23.2]} 22... Nd7 {[%clk
0:01:37.9]} 23. Kh1 {[%clk 0:01:20.7]} 23... Ng7 {[%clk 0:01:37.7]} 24. N2f3
{[%clk 0:01:19.9]} 24... Bg4 {[%clk 0:01:33.5]} 25. Qd2 {[%clk 0:01:20.5]} 25...
Bxf3 {[%clk 0:01:26.5]} 26. Nxf3 {[%clk 0:01:22.4]} 26... Ne6 {[%clk 0:01:27.4]}
27. Rad1 {[%clk 0:01:22]} 27... Nb6 {[%clk 0:01:28.8]} 28. b4 {[%clk 0:01:22.6]}
28... cxb3 {[%clk 0:01:11.3]} 29. Bxb3 {[%clk 0:01:23]} 29... Rc8 {[%clk
0:01:12.7]} 30. Nd4 {[%clk 0:01:08.1]} 30... Nxd4 {[%clk 0:01:06.2]} 31. cxd4
{[%clk 0:01:10]} 31... Qc3 {[%clk 0:01:07.5]} 32. Qf2 {[%clk 0:01:10.8]} 32...
f3 {[%clk 0:01:06.5]} 33. e6 {[%clk 0:01:09.1]} 33... Rce8 {[%clk 0:01:01.8]}
34. g3 {[%clk 0:01:00.5]} 34... Rf6 {[%clk 0:00:58.8]} 35. Re3 {[%clk 0:01:00]}
35... Qc6 {[%clk 0:01:00.2]} 36. e7 {[%clk 0:01:00.5]} 36... Rf7 {[%clk
0:00:59.6]} 37. Rde1 {[%clk 0:01:00.9]} 37... Qd7 {[%clk 0:01:00.6]} 38. Rxf3
{[%clk 0:00:56]} 38... Rexe7 {[%clk 0:01:01.6]} 39. Re5 {[%clk 0:00:47.2]} 39...
Qg4 {[%clk 0:00:42.3]} 40. Rxe7 {[%clk 0:00:38.4]} 40... Rxf3 {[%clk 0:00:20.1]}
41. Qe2 {[%clk 0:00:38.7]} 41... Qf5 {[%clk 0:00:19.3]} 42. Kg2 {[%clk
0:00:37.9]} 42... Rd3 {[%clk 0:00:17.6]} 43. Bc2 {[%clk 0:00:29.4]} 1-0

[Event "*** Titled Tuesday 3|2 Blitz"]
[Site "Chess.com"]
[Date "2016.10.04"]
[Round "4"]
[White "GianmarcoVaR"]
[Black "IamSchrodingersCat"]
[Result "1-0"]
[WhiteElo "2382"]
[BlackElo "2267"]
[TimeControl "180+2"]
[EndTime "17:51:59 PDT"]
[Termination "GianmarcoVaR won on time"]

1. d4 {[%clk 0:03:02]} 1... Nf6 {[%clk 0:02:57.1]} 2. c4 {[%clk 0:03:03.2]} 2...
e5 {[%clk 0:02:57.1]} 3. dxe5 {[%clk 0:03:03.5]} 3... Ng4 {[%clk 0:02:58.4]} 4.
Bf4 {[%clk 0:03:04.1]} 4... g5 {[%clk 0:02:58.9]} 5. Bd2 {[%clk 0:03:03]} 5...
Nc6 {[%clk 0:02:56.6]} 6. Nf3 {[%clk 0:03:01.8]} 6... Ngxe5 {[%clk 0:02:52.1]}
7. e3 {[%clk 0:02:58.9]} 7... Bg7 {[%clk 0:02:49.5]} 8. Nc3 {[%clk 0:02:58.1]}
8... d6 {[%clk 0:02:47.1]} 9. Be2 {[%clk 0:02:51.8]} 9... Be6 {[%clk 0:02:41.9]}
10. b3 {[%clk 0:02:27.4]} 10... O-O {[%clk 0:02:29.8]} 11. O-O {[%clk
0:02:25.6]} 11... f5 {[%clk 0:02:29.7]} 12. Nd4 {[%clk 0:02:26.7]} 12... Bd7
{[%clk 0:02:12.1]} 13. Nd5 {[%clk 0:02:27.9]} 13... Nxd4 {[%clk 0:01:45.2]} 14.
exd4 {[%clk 0:02:29.3]} 14... Ng6 {[%clk 0:01:43.6]} 15. Ba5 {[%clk 0:02:25.6]}
15... b6 {[%clk 0:01:40.3]} 16. Bc3 {[%clk 0:02:26.8]} 16... c6 {[%clk
0:01:39.7]} 17. Ne3 {[%clk 0:02:24.1]} 17... Nf4 {[%clk 0:01:22.2]} 18. Nc2
{[%clk 0:01:50.1]} 18... Qe7 {[%clk 0:01:11]} 19. Re1 {[%clk 0:01:50.1]} 19...
Qf7 {[%clk 0:00:59.9]} 20. Bf1 {[%clk 0:01:50.1]} 20... Rae8 {[%clk 0:00:54]}
21. Qd2 {[%clk 0:01:40.3]} 21... Qf6 {[%clk 0:00:41.6]} 22. Rxe8 {[%clk
0:00:54.5]} 22... Bxe8 {[%clk 0:00:43.5]} 23. Re1 {[%clk 0:00:53.9]} 23... h5
{[%clk 0:00:37.1]} 24. Bb2 {[%clk 0:00:46.6]} 24... h4 {[%clk 0:00:35.2]} 25. g3
{[%clk 0:00:37.1]} 25... Ng6 {[%clk 0:00:33.5]} 26. Ba1 {[%clk 0:00:31.6]} 26...
d5 {[%clk 0:00:18.1]} 27. cxd5 {[%clk 0:00:31.2]} 27... cxd5 {[%clk 0:00:20]}
28. Bg2 {[%clk 0:00:30.6]} 28... Bf7 {[%clk 0:00:20.2]} 29. Nb4 {[%clk
0:00:29.2]} 29... Qd6 {[%clk 0:00:18.5]} 30. Nd3 {[%clk 0:00:28.1]} 30... f4
{[%clk 0:00:17.6]} 31. Ne5 {[%clk 0:00:28.7]} 31... hxg3 {[%clk 0:00:15]} 32.
hxg3 {[%clk 0:00:28.3]} 32... Be8 {[%clk 0:00:09.2]} 33. Bc3 {[%clk 0:00:23.3]}
33... a5 {[%clk 0:00:09.4]} 34. b4 {[%clk 0:00:23.6]} 34... fxg3 {[%clk
0:00:07.8]} 35. fxg3 {[%clk 0:00:24.3]} 35... Bf7 {[%clk 0:00:07]} 36. bxa5
{[%clk 0:00:24]} 36... bxa5 {[%clk 0:00:08.9]} 37. Bxa5 {[%clk 0:00:24.4]} 37...
Nxe5 {[%clk 0:00:09.3]} 38. dxe5 {[%clk 0:00:25.2]} 38... Bxe5 {[%clk
0:00:07.6]} 39. Qxg5+ {[%clk 0:00:24.7]} 39... Bg7 {[%clk 0:00:08.3]} 40. Bd2
{[%clk 0:00:16.6]} 40... d4 {[%clk 0:00:06.8]} 41. Bf4 {[%clk 0:00:17.7]} 41...
Qg6 {[%clk 0:00:05.1]} 42. Qh4 {[%clk 0:00:09.8]} 42... Be6 {[%clk 0:00:02.6]}
43. Be4 {[%clk 0:00:08.6]} 1-0

[Event "*** Titled Tuesday 3|2 Blitz"]
[Site "Chess.com"]
[Date "2016.10.04"]
[Round "4"]
[White "3ptdka"]
[Black "minnesotachessmaster"]
[Result "1-0"]
[WhiteElo "2050"]
[BlackElo "1802"]
[TimeControl "180+2"]
[EndTime "17:52:13 PDT"]
[Termination "3ptdka won by checkmate"]

1. d4 {[%clk 0:03:02]} 1... Nf6 {[%clk 0:03:00]} 2. c4 {[%clk 0:03:01.8]} 2...
e6 {[%clk 0:03:00.7]} 3. Nc3 {[%clk 0:03:02.2]} 3... c5 {[%clk 0:03:01.1]} 4. d5
{[%clk 0:03:01.8]} 4... exd5 {[%clk 0:03:02.2]} 5. cxd5 {[%clk 0:03:02.7]} 5...
d6 {[%clk 0:03:03.1]} 6. Nf3 {[%clk 0:03:03.6]} 6... g6 {[%clk 0:03:03.9]} 7.
Nd2 {[%clk 0:03:02.8]} 7... Bg7 {[%clk 0:03:04.6]} 8. e4 {[%clk 0:03:03.5]} 8...
O-O {[%clk 0:03:05.2]} 9. Be2 {[%clk 0:03:04.2]} 9... Re8 {[%clk 0:03:02.1]} 10.
O-O {[%clk 0:03:03.7]} 10... a6 {[%clk 0:03:02.4]} 11. a4 {[%clk 0:03:02.9]}
11... h5 {[%clk 0:02:53]} 12. f3 {[%clk 0:02:57.8]} 12... Nbd7 {[%clk 0:02:51]}
13. a5 {[%clk 0:02:54.1]} 13... b5 {[%clk 0:02:44.8]} 14. axb6 {[%clk
0:02:53.7]} 14... Nxb6 {[%clk 0:02:45.4]} 15. Nc4 {[%clk 0:02:50.3]} 15... Nxc4
{[%clk 0:02:43.2]} 16. Bxc4 {[%clk 0:02:50.2]} 16... Bb7 {[%clk 0:02:41.8]} 17.
Be3 {[%clk 0:02:42.9]} 17... Nd7 {[%clk 0:02:38.5]} 18. Qd2 {[%clk 0:02:38.6]}
18... Nb6 {[%clk 0:02:28.8]} 19. b3 {[%clk 0:02:26.2]} 19... Nxc4 {[%clk
0:01:57]} 20. bxc4 {[%clk 0:02:26.1]} 20... f5 {[%clk 0:01:57.4]} 21. Rae1
{[%clk 0:02:06.9]} 21... Qf6 {[%clk 0:01:45.8]} 22. Ne2 {[%clk 0:01:41]} 22...
a5 {[%clk 0:01:40.4]} 23. Bh6 {[%clk 0:01:33.8]} 23... Bh8 {[%clk 0:01:34.1]}
24. Bg5 {[%clk 0:01:30.3]} 24... Qf7 {[%clk 0:01:23.7]} 25. Nf4 {[%clk 0:01:24]}
25... a4 {[%clk 0:01:09.9]} 26. Ne6 {[%clk 0:01:07.3]} 26... Rxe6 {[%clk
0:00:49.2]} 27. dxe6 {[%clk 0:01:06.3]} 27... Qxe6 {[%clk 0:00:49.9]} 28. exf5
{[%clk 0:00:55.2]} 28... Qxf5 {[%clk 0:00:50.7]} 29. Qxd6 {[%clk 0:00:36.8]}
29... Qxg5 {[%clk 0:00:46.8]} 30. Qe6+ {[%clk 0:00:37.1]} 30... Kf8 {[%clk
0:00:42.8]} 31. Qd6+ {[%clk 0:00:36.9]} 31... Kg8 {[%clk 0:00:40.5]} 32. Qc7
{[%clk 0:00:18.1]} 32... Bd4+ {[%clk 0:00:26.2]} 33. Kh1 {[%clk 0:00:17.9]}
33... Ba6 {[%clk 0:00:12.4]} 34. Qc6 {[%clk 0:00:17]} 34... Qd8 {[%clk
0:00:07.4]} 35. Qxg6+ {[%clk 0:00:16.1]} 35... Kh8 {[%clk 0:00:08.3]} 36. Qxh5+
{[%clk 0:00:17.1]} 36... Kg8 {[%clk 0:00:09.1]} 37. Re4 {[%clk 0:00:16.6]} 37...
Bg7 {[%clk 0:00:06.1]} 38. Qxc5 {[%clk 0:00:14.8]} 38... Rc8 {[%clk 0:00:05.1]}
39. Qf5 {[%clk 0:00:11.3]} 39... Bxc4 {[%clk 0:00:03.8]} 40. Rfe1 {[%clk
0:00:12]} 40... Bf7 {[%clk 0:00:04]} 41. Rf4 {[%clk 0:00:12.1]} 41... Qc7 {[%clk
0:00:04.2]} 42. h4 {[%clk 0:00:11.4]} 42... a3 {[%clk 0:00:04.8]} 43. Rg4 {[%clk
0:00:11.2]} 43... Rf8 {[%clk 0:00:02.9]} 44. Qg5 {[%clk 0:00:12]} 44... Qc3
{[%clk 0:00:03.1]} 45. Re3 {[%clk 0:00:10.1]} 45... Qa1+ {[%clk 0:00:03]} 46.
Kh2 {[%clk 0:00:10.7]} 46... Kh8 {[%clk 0:00:04]} 47. Rxa3 {[%clk 0:00:11]}
47... Qxa3 {[%clk 0:00:03.8]} 48. Qxg7# {[%clk 0:00:11.2]} 1-0

[Event "*** Titled Tuesday 3|2 Blitz"]
[Site "Chess.com"]
[Date "2016.10.04"]
[Round "4"]
[White "Rating-Schmating"]
[Black "Schwarzschidl"]
[Result "0-1"]
[WhiteElo "2214"]
[BlackElo "2338"]
[TimeControl "180+2"]
[EndTime "17:52:27 PDT"]
[Termination "Schwarzschidl won by resignation"]

1. e4 {[%clk 0:03:01.9]} 1... e5 {[%clk 0:02:59.9]} 2. Nf3 {[%clk 0:03:02.1]}
2... Nc6 {[%clk 0:02:59.6]} 3. d4 {[%clk 0:03:03.2]} 3... exd4 {[%clk
0:02:58.1]} 4. Nxd4 {[%clk 0:03:04.5]} 4... Nf6 {[%clk 0:02:57.8]} 5. Nxc6
{[%clk 0:03:05.7]} 5... bxc6 {[%clk 0:02:59.7]} 6. e5 {[%clk 0:03:07.2]} 6...
Qe7 {[%clk 0:02:56.7]} 7. Qe2 {[%clk 0:03:08.3]} 7... Nd5 {[%clk 0:02:56.9]} 8.
c4 {[%clk 0:03:09.6]} 8... Ba6 {[%clk 0:02:55.1]} 9. Nd2 {[%clk 0:03:10.6]} 9...
g6 {[%clk 0:02:21.7]} 10. Nf3 {[%clk 0:03:08.7]} 10... Bg7 {[%clk 0:02:21.9]}
11. b3 {[%clk 0:03:06.4]} 11... O-O {[%clk 0:01:54.7]} 12. Bb2 {[%clk
0:03:03.7]} 12... Rae8 {[%clk 0:01:38.1]} 13. O-O-O {[%clk 0:02:51.3]} 13... d6
{[%clk 0:01:08.7]} 14. Qc2 {[%clk 0:02:40.8]} 14... Nb4 {[%clk 0:01:06.8]} 15.
Qb1 {[%clk 0:02:41.1]} 15... dxe5 {[%clk 0:00:47.2]} 16. a3 {[%clk 0:02:39.9]}
16... e4 {[%clk 0:00:48.6]} 17. Bxg7 {[%clk 0:02:30.6]} 17... Kxg7 {[%clk
0:00:49.8]} 18. Qb2+ {[%clk 0:02:24.3]} 18... f6 {[%clk 0:00:50.8]} 19. Nd4
{[%clk 0:02:24]} 19... Nd3+ {[%clk 0:00:51.3]} 20. Bxd3 {[%clk 0:02:24.3]} 20...
exd3 {[%clk 0:00:53.2]} 21. Rxd3 {[%clk 0:02:24.5]} 21... c5 {[%clk 0:00:52.2]}
22. Nf3 {[%clk 0:02:23.9]} 22... Bb7 {[%clk 0:00:50.7]} 23. Rhd1 {[%clk
0:02:23.7]} 23... Rd8 {[%clk 0:00:51.3]} 24. Rxd8 {[%clk 0:02:24]} 24... Rxd8
{[%clk 0:00:53.2]} 25. Rxd8 {[%clk 0:02:25]} 25... Qxd8 {[%clk 0:00:55]} 26. Qe2
{[%clk 0:02:22.1]} 26... h5 {[%clk 0:00:52.1]} 27. g3 {[%clk 0:02:18.2]} 27...
Qd6 {[%clk 0:00:47.6]} 28. Nd2 {[%clk 0:02:17]} 28... a5 {[%clk 0:00:43.7]} 29.
Kc2 {[%clk 0:02:12.3]} 29... Bc6 {[%clk 0:00:44.1]} 30. Qd3 {[%clk 0:02:11]}
30... Qe5 {[%clk 0:00:42.9]} 31. Qc3 {[%clk 0:02:08.3]} 31... Qf5+ {[%clk
0:00:43]} 32. Kb2 {[%clk 0:02:08.5]} 32... a4 {[%clk 0:00:39.9]} 33. f4 {[%clk
0:02:06.2]} 33... axb3 {[%clk 0:00:40.5]} 34. Nxb3 {[%clk 0:02:07.3]} 34... h4
{[%clk 0:00:40.9]} 35. Qe3 {[%clk 0:02:06.5]} 35... Qh3 {[%clk 0:00:38.3]} 36.
Qe7+ {[%clk 0:02:06.2]} 36... Kh6 {[%clk 0:00:39.4]} 37. Qf8+ {[%clk 0:01:55.5]}
37... Kh5 {[%clk 0:00:40.2]} 38. Qxc5+ {[%clk 0:01:56.1]} 38... Kg4 {[%clk
0:00:36.9]} 39. Qxc6 {[%clk 0:01:56.4]} 39... Qxh2+ {[%clk 0:00:38.1]} 40. Kc3
{[%clk 0:01:54.3]} 40... Qxg3+ {[%clk 0:00:38.1]} 41. Kb4 {[%clk 0:01:55.6]}
41... h3 {[%clk 0:00:38.7]} 42. Nd2 {[%clk 0:01:50.2]} 42... Qxf4 {[%clk
0:00:36.6]} 43. Qe6+ {[%clk 0:01:44]} 43... Kh4 {[%clk 0:00:29.3]} 44. Qe2
{[%clk 0:01:39.3]} 44... Qd6+ {[%clk 0:00:25.4]} 45. Kb3 {[%clk 0:01:36]} 45...
h2 {[%clk 0:00:18.5]} 46. Nf3+ {[%clk 0:01:29.5]} 46... Kh3 {[%clk 0:00:19.6]}
47. Qxh2+ {[%clk 0:00:45.7]} 47... Qxh2 {[%clk 0:00:20.6]} 48. Nxh2 {[%clk
0:00:47.1]} 48... Kxh2 {[%clk 0:00:22.1]} 49. a4 {[%clk 0:00:48.7]} 49... g5
{[%clk 0:00:23.4]} 50. a5 {[%clk 0:00:50.4]} 50... g4 {[%clk 0:00:25.3]} 51. a6
{[%clk 0:00:52]} 51... g3 {[%clk 0:00:27.2]} 52. a7 {[%clk 0:00:53.5]} 52... g2
{[%clk 0:00:29.1]} 53. a8=Q {[%clk 0:00:54.6]} 53... g1=Q {[%clk 0:00:31]} 54.
Qh8+ {[%clk 0:00:55.6]} 54... Kg2 {[%clk 0:00:32]} 55. Qg7+ {[%clk 0:00:56]}
55... Kh1 {[%clk 0:00:31.7]} 56. Qh6+ {[%clk 0:00:55.5]} 56... Qh2 {[%clk
0:00:31]} 57. Qc1+ {[%clk 0:00:48.8]} 57... Kg2 {[%clk 0:00:30.7]} 58. Qd2+
{[%clk 0:00:47.8]} 58... Kh3 {[%clk 0:00:31.6]} 59. Qh6+ {[%clk 0:00:48.1]}
59... Kg2 {[%clk 0:00:31.5]} 60. Qxf6 {[%clk 0:00:47.9]} 60... Qg3+ {[%clk
0:00:31.1]} 61. Kb4 {[%clk 0:00:47.7]} 61... Qe1+ {[%clk 0:00:31.3]} 62. Kc5
{[%clk 0:00:44.4]} 62... Qa5+ {[%clk 0:00:32.5]} 63. Kd4 {[%clk 0:00:45]} 63...
Qa1+ {[%clk 0:00:33.1]} 0-1